{"text_format":"3","workbook":"xlsx","n_sheets":4,"sheets":["Listă de cumpărături","Buget detaliat","Listă de făcut","Partajare listă"],"not_rendered":{"charts":2,"images":2,"defined_names":12},"read":"whole","date_system":"1900"}

{"sheet":"Listă de cumpărături","index":0,"n_rows":25,"n_cols":8,"rows_kept":25,"merged":[[2,1,2,7],[3,1,3,2],[4,4,6,7]]}
[null,"Înapoi la școală","Planificator"]
[]
[null,"Urmăriți progresul cumpărăturilor comparând cu sumele pe categorie de buget introduse în bugetul detaliat."]
[null,"Rezumatul bugetului",null,null,{"$f":"\"Progres achiziții (\"&COUNTIFS(Listă_de_verificare[Cumpărat], \">0\")&\" din \"&COUNTIFS(Listă_de_verificare[De cumpărat], \">0\")&\")\"","v":"Progres achiziții (1 din 6)"}]
[null,"Buget",{"v":1500,"d":"1,500.00 lei"},null,{"$f":"IFERROR(COUNTIFS(Listă_de_verificare[De cumpărat],\">0\",Listă_de_verificare[Cumpărat],\">0\")/SumăArticoleDeCumpărat,0)","v":{"v":0.16666666666666666,"d":"17%"}}]
[null,"Total Listă de cumpărături",{"$f":"IFERROR(SUM(ListăVerificareTotal), \"\")","v":{"v":365,"d":"365.00 lei"}}]
[null,"Bani rămași",{"$f":"IFERROR(C5-C6, \"\")","v":{"v":1135,"d":"1,135.00 lei"}}]
[null,"Listă de cumpărături"]
[null,"Articol","Categorie","Cantitate","De cumpărat","Cost","Cumpărat","Cost total"]
[null,"Matematică","Manuale",1,1,{"v":55,"d":"55.00 lei"},1,{"$f":"IFERROR(Listă_de_verificare[Cantitate]*Listă_de_verificare[Cost], \"\")","v":{"v":55,"d":"55.00 lei"}}]
[null,"Română","Manuale",1,1,null,null,{"$f":"IFERROR(Listă_de_verificare[Cantitate]*Listă_de_verificare[Cost], \"\")","v":0}]
[null,"Rucsac","Rechizite",1,null,{"v":30,"d":"30.00 lei"},null,{"$f":"IFERROR(Listă_de_verificare[Cantitate]*Listă_de_verificare[Cost], \"\")","v":{"v":30,"d":"30.00 lei"}}]
[null,"Calculator","Rechizite",1,{"$nulls":3},{"$f":"IFERROR(Listă_de_verificare[Cantitate]*Listă_de_verificare[Cost], \"\")","v":0}]
[null,"Markere","Rechizite",3,{"$nulls":3},{"$f":"IFERROR(Listă_de_verificare[Cantitate]*Listă_de_verificare[Cost], \"\")","v":0}]
[null,"Uniformă","Îmbrăcăminte",2,1,{"v":100,"d":"100.00 lei"},null,{"$f":"IFERROR(Listă_de_verificare[Cantitate]*Listă_de_verificare[Cost], \"\")","v":{"v":200,"d":"200.00 lei"}}]
[null,"Tricou, cu nasturi","Îmbrăcăminte",4,{"$nulls":3},{"$f":"IFERROR(Listă_de_verificare[Cantitate]*Listă_de_verificare[Cost], \"\")","v":0}]
[null,"Tricou, cu mâneci scurte","Îmbrăcăminte",5,{"$nulls":3},{"$f":"IFERROR(Listă_de_verificare[Cantitate]*Listă_de_verificare[Cost], \"\")","v":0}]
[null,"Șorturi","Îmbrăcăminte",2,{"$nulls":3},{"$f":"IFERROR(Listă_de_verificare[Cantitate]*Listă_de_verificare[Cost], \"\")","v":0}]
[null,"Adidași","Îmbrăcăminte",2,1,null,null,{"$f":"IFERROR(Listă_de_verificare[Cantitate]*Listă_de_verificare[Cost], \"\")","v":0}]
[null,"Șosete","Îmbrăcăminte",10,{"$nulls":3},{"$f":"IFERROR(Listă_de_verificare[Cantitate]*Listă_de_verificare[Cost], \"\")","v":0}]
[null,"Jachetă de primăvară","Îmbrăcăminte",1,1,{"v":80,"d":"80.00 lei"},null,{"$f":"IFERROR(Listă_de_verificare[Cantitate]*Listă_de_verificare[Cost], \"\")","v":{"v":80,"d":"80.00 lei"}}]
[null,"Pulovere","Îmbrăcăminte",1,{"$nulls":3},{"$f":"IFERROR(Listă_de_verificare[Cantitate]*Listă_de_verificare[Cost], \"\")","v":0}]
[null,"Hanorace","Îmbrăcăminte",1,{"$nulls":3},{"$f":"IFERROR(Listă_de_verificare[Cantitate]*Listă_de_verificare[Cost], \"\")","v":0}]
[null,"Lenjerie","Îmbrăcăminte",10,{"$nulls":3},{"$f":"IFERROR(Listă_de_verificare[Cantitate]*Listă_de_verificare[Cost], \"\")","v":0}]
[null,"Jachetă de iarnă","Îmbrăcăminte",1,1,null,null,{"$f":"IFERROR(Listă_de_verificare[Cantitate]*Listă_de_verificare[Cost], \"\")","v":0}]

{"sheet":"Buget detaliat","index":1,"n_rows":6,"n_cols":3,"rows_kept":6}
[null,"Buget detaliat"]
[null,"Adăugați categorii și sume de buget pentru a urmări comparativ cu lista dvs. de cumpărături."]
[null,"Categorie","Cost total"]
[null,"Îmbrăcăminte",{"$f":"IFERROR(SUMIFS(Listă_de_verificare[Cost total],Listă_de_verificare[Categorie],Categorie[Categorie]), \"\")","v":{"v":280,"d":"280.00 lei"}}]
[null,"Rechizite",{"$f":"IFERROR(SUMIFS(Listă_de_verificare[Cost total],Listă_de_verificare[Categorie],Categorie[Categorie]), \"\")","v":{"v":30,"d":"30.00 lei"}}]
[null,"Manuale",{"$f":"IFERROR(SUMIFS(Listă_de_verificare[Cost total],Listă_de_verificare[Categorie],Categorie[Categorie]), \"\")","v":{"v":55,"d":"55.00 lei"}}]

{"sheet":"Listă de făcut","index":2,"n_rows":22,"n_cols":3,"rows_kept":22}
[null,"Listă de făcut"]
[null,"Urmăriți toate activitățile care trebuie făcute înainte de a începe școala."]
[null,"Gata","Activitate"]
[null,"x","Completați toate formularele de înscriere"]
[null,null,"Programați examenul medical și oftalmologic, dacă este necesar"]
[null,null,"Verificați toate imunizările necesare"]
[null,null,"Obțineți de la medic nota cu instrucțiuni de dozare pentru toate medicamente necesare"]
[null,null,"Revedeți regulamentul pentru îmbrăcăminte al școlii"]
[null,null,"Obțineți o listă de rechizite școlare"]
[null,null,"Întâlnire cu profesorul"]
[null,null,"Stabiliți metoda de comunicare preferată cu profesorul (telefon, e-mail, notă scrisă)"]
[null,null,"Tur al școlii cu copilul"]
[null,null,"Ajutați copilul să memoreze numărul de telefon de acasă, de la birou și adresa dvs."]
[null,null,"Aranjați transportul, desemnați un loc sigur de întâlnire și repetați desfășurarea evenimentelor"]
[null,null,"Dacă merge pe jos, exersați traseul către și de la școală cu copilul, de câteva ori"]
[null,null,"Dacă merge cu mașina împreună cu alți copii, prezentați copilului toți șoferii"]
[null,null,"Dacă merge cu autobuzul, stabiliți orele și opririle acestuia"]
[null,null,"Stabiliți cine are grijă de copil și după școală"]
[null,null,"Planificați un meniu de mic-dejun, gustări la școală, pachete de mâncare la școală și gustări după școală"]
[null,null,"Determinați locația și planificarea pentru teme"]
[null,null,"Stabiliți o rutină pentru somn cu cel puțin două săptămâni înainte de a începe școala"]
[null,null,"Pregătiți un calendar cu toate evenimentele și activitățile de la școală"]

{"sheet":"Partajare listă","index":3,"n_rows":4,"n_cols":5,"rows_kept":4}
[null,"Partajare listă",null,null,"Partajați această listă cu alte persoane, astfel încât ei să poată contribui. Selectați Partajare în partea din dreapta sus sau apăsați pe ALT, apoi YU. Salvați fișierul pe OneDrive și trimiteți linkul prietenilor."]
[null,"Nume","E-mail","Partajat?"]
[null,"Persoana 1","cineva@email.com","Da"]
[null,"Persoana 2","cineva@email.com","Nu"]